[Event "15. ročník Dobrovický rapid Tereos TTD a.s."]
[Site "Dobrovice, Czech Republic"]
[Date "2020.02.29"]
[Round "1.1"]
[White "Plat Vojtech"]
[Black "Sulc Jakub"]
[Result "1-0"]
[TimeControl "15m + 3s / tah"]
[WhiteElo "2553"]
[BlackElo "1754"]

1. e4 {[%clk 00:15:03]} e6 {[%clk 00:15:05]} {[%emt 00:32:57]} 2. d4 {[%clk
00:15:05]} d5 {[%clk 00:15:07]} {[%emt 00:00:02]} 3. Nd2 {[%emt 00:00:03]} Nf6
4. e5 {[%clk 00:15:09]} Nfd7 {[%clk 00:15:11]} {[%emt 00:00:01]} 5. Bd3 {[%clk
00:15:11]} c5 {[%clk 00:15:13]} {[%emt 00:00:01]} 6. c3 {[%clk 00:15:13]} Nc6
{[%clk 00:15:14]} {[%emt 00:00:01]} 7. Ne2 {[%clk 00:15:15]} cxd4 {[%clk
00:15:15]} {[%emt 00:00:03]} 8. cxd4 {[%clk 00:15:17]} {[%emt 00:00:01]} f6
{[%clk 00:15:17]} {[%emt 00:00:01]} 9. exf6 {[%clk 00:15:18]} {[%emt 00:00:01]}
Nxf6 {[%clk 00:15:17]} {[%emt 00:00:03]} 10. O-O {[%clk 00:15:19]} {[%emt
00:00:02]} Bd6 {[%clk 00:15:19]} {[%emt 00:00:02]} 11. Nf3 {[%clk 00:15:14]}
{[%emt 00:00:08]} O-O {[%clk 00:15:19]} {[%emt 00:00:02]} 12. Bg5 {[%clk
00:14:20]} {[%emt 00:00:58]} Bd7 {[%clk 00:13:18]} {[%emt 00:02:04]} 13. Ng3
{[%clk 00:13:58]} {[%emt 00:00:25]} h6 {[%clk 00:12:55]} {[%emt 00:00:26]} 14.
Bxf6 {[%clk 00:13:59]} {[%emt 00:00:01]} Qxf6 {[%clk 00:12:55]} {[%emt
00:00:03]} 15. a3 {[%clk 00:13:37]} {[%emt 00:00:25]} Kh8 {[%clk 00:12:44]}
{[%emt 00:00:14]} 16. Bc2 {[%clk 00:13:34]} {[%emt 00:00:05]} Ne7 {[%clk
00:11:39]} {[%emt 00:01:09]} 17. Qd3 {[%clk 00:13:16]} {[%emt 00:00:21]} Nf5
{[%clk 00:11:27]} {[%emt 00:00:15]} 18. Nxf5 {[%clk 00:13:17]} {[%emt
00:00:02]} exf5 {[%clk 00:11:11]} {[%emt 00:00:19]} 19. Rfe1 {[%clk 00:13:18]}
{[%emt 00:00:02]} Rfe8 {[%clk 00:11:06]} {[%emt 00:00:08]} 20. b4 {[%clk
00:13:10]} {[%emt 00:00:11]} a6 {[%clk 00:10:58]} {[%emt 00:00:11]} 21. Bb3
{[%clk 00:12:37]} {[%emt 00:00:35]} Bc6 {[%clk 00:10:48]} {[%emt 00:00:12]} 22.
Qc3 {[%clk 00:12:22]} {[%emt 00:00:19]} Rac8 {[%clk 00:09:27]} {[%emt
00:01:24]} 23. Rxe8+ {[%clk 00:10:12]} {[%emt 00:02:13]} Rxe8 {[%clk 00:09:00]}
{[%emt 00:00:30]} 24. Re1 {[%clk 00:10:13]} Rxe1+ {[%clk 00:04:26]} {[%emt
00:04:39]} 25. Qxe1 {[%clk 00:10:15]} {[%emt 00:00:01]} a5 {[%clk 00:04:26]}
{[%emt 00:00:04]} 26. bxa5 {[%clk 00:09:32]} {[%emt 00:00:45]} Bxa3 {[%clk
00:04:24]} {[%emt 00:00:04]} 27. Ne5 {[%clk 00:09:33]} {[%emt 00:00:03]} Qe6
{[%clk 00:03:24]} {[%emt 00:01:04]} 28. Qa1 {[%clk 00:08:22]} {[%emt 00:01:13]}
Bb4 {[%clk 00:02:34]} {[%emt 00:00:52]} 29. a6 {[%clk 00:08:14]} {[%emt
00:00:11]} bxa6 {[%clk 00:01:11]} {[%emt 00:01:27]} 30. Qxa6 {[%clk 00:08:15]}
{[%emt 00:00:02]} Bd7 {[%clk 00:00:05]} {[%emt 00:01:09]} 31. Qb7 {[%clk
00:08:10]} {[%emt 00:00:07]} 1-0

[Event "15. ročník Dobrovický rapid Tereos TTD a.s."]
[Site "Dobrovice, Czech Republic"]
[Date "2020.02.29"]
[Round "1.2"]
[White "Davidek Bohuslav"]
[Black "Zwardon Vojtech"]
[Result "0-1"]
[TimeControl "15m + 3s / tah"]
[WhiteElo "1752"]
[BlackElo "2460"]

1. e4 {[%clk 00:15:02]} {[%emt 00:00:02]} c5 {[%clk 00:15:06]} 2. Nf3 {[%clk
00:15:03]} {[%emt 00:00:03]} Nc6 {[%clk 00:15:08]} {[%emt 00:00:01]} 3. d4
{[%clk 00:15:05]} {[%emt 00:00:01]} cxd4 {[%clk 00:15:09]} {[%emt 00:00:02]} 4.
Nxd4 {[%clk 00:15:05]} {[%emt 00:00:02]} g6 {[%clk 00:15:11]} {[%emt 00:00:01]}
5. Nc3 {[%clk 00:15:05]} {[%emt 00:00:02]} Bg7 {[%clk 00:15:14]} {[%emt
00:00:02]} 6. Be3 {[%clk 00:14:50]} {[%emt 00:00:18]} Nf6 {[%clk 00:15:15]}
{[%emt 00:00:02]} 7. f3 {[%clk 00:14:48]} {[%emt 00:00:04]} O-O {[%clk
00:15:14]} {[%emt 00:00:04]} 8. Bc4 {[%clk 00:14:46]} {[%emt 00:00:05]} Qb6
{[%clk 00:15:15]} {[%emt 00:00:02]} 9. Bb3 {[%clk 00:14:11]} {[%emt 00:00:37]}
Nxe4 {[%clk 00:15:15]} {[%emt 00:00:03]} 10. Na4 {[%clk 00:12:27]} {[%emt
00:01:47]} Qa5+ {[%clk 00:14:57]} {[%emt 00:00:21]} 11. c3 {[%clk 00:12:28]}
{[%emt 00:00:02]} Nf6 {[%clk 00:14:18]} {[%emt 00:00:42]} 12. O-O {[%clk
00:12:16]} {[%emt 00:00:16]} d6 {[%clk 00:14:00]} {[%emt 00:00:20]} 13. Bc4
{[%clk 00:11:18]} {[%emt 00:01:01]} 0-1

[Event "15. ročník Dobrovický rapid Tereos TTD a.s."]
[Site "Dobrovice, Czech Republic"]
[Date "2020.02.29"]
[Round "1.3"]
[White "Kourousis Epaminondas"]
[Black "Martinec Karel"]
[Result "1-0"]
[TimeControl "15m + 3s / tah"]
[WhiteElo "2406"]
[BlackElo "1749"]

1. e4 {[%clk 00:15:01]} {[%emt 00:00:04]} e5 {[%clk 00:15:02]} {[%emt
00:00:05]} 2. Nf3 {[%emt 00:00:02]} Nc6 3. Bb5 {[%clk 00:14:49]} {[%emt
00:00:15]} a6 {[%clk 00:15:01]} {[%emt 00:00:06]} 4. Ba4 {[%clk 00:14:49]}
{[%emt 00:00:03]} Nf6 {[%clk 00:15:00]} {[%emt 00:00:05]} 5. Bxc6 {[%clk
00:14:38]} {[%emt 00:00:13]} dxc6 {[%clk 00:14:59]} {[%emt 00:00:04]} 6. d3
{[%clk 00:14:38]} {[%emt 00:00:03]} Bd6 {[%clk 00:13:40]} {[%emt 00:01:22]} 7.
Nbd2 {[%clk 00:14:30]} {[%emt 00:00:11]} b5 {[%clk 00:13:29]} {[%emt 00:00:14]}
8. b3 {[%clk 00:14:14]} {[%emt 00:00:19]} O-O {[%clk 00:12:58]} {[%emt
00:00:34]} 9. Bb2 {[%clk 00:14:15]} {[%emt 00:00:02]} Qe7 {[%clk 00:13:00]}
{[%emt 00:00:01]} 10. O-O {[%clk 00:14:08]} {[%emt 00:00:10]} c5 {[%clk
00:12:45]} {[%emt 00:00:19]} 11. h3 {[%clk 00:13:47]} {[%emt 00:00:23]} h6
{[%clk 00:12:41]} {[%emt 00:00:08]} 12. Nh2 {[%clk 00:12:13]} {[%emt 00:01:37]}
Be6 {[%clk 00:11:35]} {[%emt 00:01:08]} 13. f4 {[%clk 00:12:03]} {[%emt
00:00:13]} Bd7 {[%clk 00:09:56]} {[%emt 00:01:42]} 14. Nhf3 {[%clk 00:11:03]}
{[%emt 00:01:03]} Bxh3 {[%clk 00:06:58]} {[%emt 00:03:02]} 15. fxe5 {[%clk
00:10:25]} {[%emt 00:00:41]} Ng4 {[%clk 00:06:30]} {[%emt 00:00:32]} 16. exd6
{[%clk 00:10:15]} {[%emt 00:00:13]} Qxd6 {[%clk 00:06:29]} {[%emt 00:00:04]} 17.
Qe1 {[%clk 00:09:37]} {[%emt 00:00:40]} f5 {[%clk 00:05:24]} {[%emt 00:01:07]}
18. e5 {[%clk 00:09:01]} {[%emt 00:00:38]} Qg6 {[%clk 00:05:13]} {[%emt
00:00:15]} 19. Nh4 {[%clk 00:08:29]} {[%emt 00:00:35]} Qg5 {[%clk 00:04:48]}
{[%emt 00:00:29]} 20. Ndf3 {[%clk 00:08:29]} {[%emt 00:00:02]} Qh5 {[%clk
00:04:09]} {[%emt 00:00:43]} 21. gxh3 {[%clk 00:08:19]} {[%emt 00:00:17]} 1-0

[Event "15. ročník Dobrovický rapid Tereos TTD a.s."]
[Site "Dobrovice, Czech Republic"]
[Date "2020.02.29"]
[Round "1.4"]
[White "Redek Daniel"]
[Black "Velicka Petr"]
[Result "0-1"]
[TimeControl "15m + 3s / tah"]
[WhiteElo "1749"]
[BlackElo "2395"]

1. d4 {[%clk 00:15:04]} {[%emt 00:00:01]} d5 {[%clk 00:15:04]} {[%emt
00:00:03]} 2. c4 {[%clk 00:15:04]} {[%emt 00:00:03]} c6 {[%clk 00:15:05]}
{[%emt 00:00:01]} 3. e3 {[%clk 00:15:04]} {[%emt 00:00:03]} Nf6 {[%clk
00:15:05]} {[%emt 00:00:03]} 4. Nf3 {[%clk 00:15:05]} {[%emt 00:00:02]} Bg4
{[%clk 00:15:05]} {[%emt 00:00:03]} 5. Nbd2 {[%clk 00:15:02]} {[%emt 00:00:05]}
Nbd7 {[%clk 00:15:01]} {[%emt 00:00:07]} 6. h3 {[%clk 00:15:02]} {[%emt
00:00:04]} Bh5 {[%clk 00:15:03]} 7. cxd5 {[%clk 00:14:47]} {[%emt 00:00:18]}
cxd5 {[%clk 00:15:03]} {[%emt 00:00:02]} 8. Be2 {[%clk 00:14:46]} {[%emt
00:00:04]} e6 {[%clk 00:15:05]} {[%emt 00:00:02]} 9. O-O {[%clk 00:14:45]}
{[%emt 00:00:04]} Bd6 {[%clk 00:15:03]} {[%emt 00:00:04]} 10. Re1 {[%clk
00:13:53]} {[%emt 00:00:55]} O-O {[%clk 00:15:03]} {[%emt 00:00:03]} 11. a3
{[%clk 00:13:32]} {[%emt 00:00:24]} a5 {[%clk 00:14:59]} {[%emt 00:00:07]} 12.
b3 {[%clk 00:12:20]} {[%emt 00:01:15]} Qb6 {[%clk 00:14:56]} {[%emt 00:00:05]}
13. Bb2 {[%clk 00:12:16]} {[%emt 00:00:07]} Rfc8 {[%clk 00:14:53]} {[%emt
00:00:06]} 14. Bd3 {[%clk 00:11:28]} {[%emt 00:00:51]} Rc7 {[%clk 00:14:44]}
{[%emt 00:00:11]} 15. Rc1 {[%clk 00:11:14]} {[%emt 00:00:17]} Rac8 {[%clk
00:14:44]} {[%emt 00:00:03]} 16. Rxc7 {[%clk 00:10:58]} {[%emt 00:00:20]} Rxc7
{[%clk 00:14:45]} {[%emt 00:00:02]} 17. Qe2 {[%clk 00:09:49]} {[%emt 00:01:12]}
Bg6 {[%clk 00:13:57]} {[%emt 00:00:51]} 18. Ra1 {[%clk 00:09:38]} {[%emt
00:00:14]} Rc6 {[%clk 00:13:36]} {[%emt 00:00:24]} 19. a4 {[%clk 00:09:27]}
{[%emt 00:00:13]} Qc7 {[%clk 00:13:21]} {[%emt 00:00:18]} 20. Ne1 {[%clk
00:09:06]} {[%emt 00:00:24]} Bxd3 {[%clk 00:13:02]} {[%emt 00:00:22]} 21. Qxd3
{[%clk 00:09:07]} {[%emt 00:00:02]} Bb4 {[%clk 00:12:53]} {[%emt 00:00:12]} 22.
Ndf3 {[%clk 00:08:35]} {[%emt 00:00:35]} Ne4 {[%clk 00:12:48]} {[%emt
00:00:07]} 23. Ba3 {[%clk 00:08:10]} {[%emt 00:00:28]} Rc3 {[%clk 00:12:44]}
{[%emt 00:00:08]} 24. Qb5 {[%clk 00:07:50]} {[%emt 00:00:22]} Nd6 {[%clk
00:12:17]} {[%emt 00:00:31]} 25. Qe2 {[%clk 00:07:37]} {[%emt 00:00:15]} Rxb3
{[%clk 00:12:18]} {[%emt 00:00:04]} 26. Bxb4 {[%clk 00:07:25]} {[%emt
00:00:14]} Rxb4 {[%clk 00:12:19]} {[%emt 00:00:02]} 27. Nd3 {[%clk 00:07:25]}
{[%emt 00:00:03]} Rc4 {[%clk 00:12:20]} {[%emt 00:00:02]} 28. Qb2 {[%clk
00:06:36]} {[%emt 00:00:52]} Rc2 {[%clk 00:11:47]} {[%emt 00:00:36]} 29. Qa3
{[%clk 00:05:51]} {[%emt 00:00:49]} Rc3 {[%clk 00:11:46]} {[%emt 00:00:04]} 30.
Rc1 {[%clk 00:05:52]} {[%emt 00:00:02]} Rxc1+ {[%clk 00:11:09]} {[%emt
00:00:40]} 31. Nxc1 {[%clk 00:05:52]} {[%emt 00:00:03]} f6 {[%clk 00:10:34]}
{[%emt 00:00:38]} 32. Nb3 {[%clk 00:05:34]} {[%emt 00:00:21]} Kf7 {[%clk
00:10:28]} {[%emt 00:00:10]} 33. Nxa5 {[%clk 00:05:33]} {[%emt 00:00:04]} Qxa5
{[%clk 00:10:18]} {[%emt 00:00:13]} 34. Qxd6 {[%clk 00:05:34]} {[%emt
00:00:03]} Qxa4 {[%clk 00:10:18]} {[%emt 00:00:03]} 35. Kh2 {[%clk 00:05:08]}
{[%emt 00:00:29]} Qc6 {[%clk 00:10:17]} {[%emt 00:00:03]} 36. Qf4 {[%clk
00:04:55]} {[%emt 00:00:16]} Ke7 {[%clk 00:09:34]} {[%emt 00:00:45]} 37. g4
{[%clk 00:04:49]} {[%emt 00:00:10]} Qd6 {[%clk 00:09:34]} {[%emt 00:00:03]} 38.
Kg3 {[%clk 00:04:11]} {[%emt 00:00:41]} b5 {[%clk 00:09:32]} {[%emt 00:00:05]}
39. Nd2 {[%clk 00:04:03]} {[%emt 00:00:11]} Nb6 {[%clk 00:09:15]} {[%emt
00:00:19]} 40. Nb3 {[%clk 00:03:57]} {[%emt 00:00:10]} b4 {[%clk 00:09:00]}
{[%emt 00:00:19]} 41. h4 {[%clk 00:03:55]} {[%emt 00:00:05]} h6 {[%clk
00:08:32]} {[%emt 00:00:31]} 42. Kf3 {[%clk 00:03:40]} {[%emt 00:00:17]} g5
{[%clk 00:08:31]} {[%emt 00:00:04]} 43. hxg5 {[%clk 00:03:40]} {[%emt
00:00:04]} hxg5 {[%clk 00:08:33]} {[%emt 00:00:01]} 44. Qxd6+ {[%clk 00:03:32]}
{[%emt 00:00:11]} Kxd6 {[%clk 00:08:34]} {[%emt 00:00:02]} 45. Ke2 {[%clk
00:03:27]} {[%emt 00:00:08]} Nd7 {[%clk 00:07:58]} {[%emt 00:00:38]} 46. f4
{[%clk 00:03:29]} {[%emt 00:00:01]} Kc6 {[%clk 00:07:50]} {[%emt 00:00:11]} 47.
Kd3 {[%clk 00:03:31]} {[%emt 00:00:02]} Kb5 {[%clk 00:07:52]} 48. Kc2 {[%clk
00:03:24]} {[%emt 00:00:09]} gxf4 {[%clk 00:07:20]} {[%emt 00:00:35]} 49. exf4
{[%clk 00:03:24]} {[%emt 00:00:03]} Kc4 {[%clk 00:07:22]} 50. g5 {[%clk
00:03:04]} {[%emt 00:00:24]} fxg5 {[%clk 00:07:24]} {[%emt 00:00:01]} 51. fxg5
{[%clk 00:03:07]} {[%emt 00:00:01]} Nf8 {[%clk 00:07:26]} 52. Nc5 {[%clk
00:02:40]} {[%emt 00:00:31]} e5 {[%clk 00:07:12]} {[%emt 00:00:17]} 53. Nd7
{[%clk 00:01:36]} {[%emt 00:01:07]} Nxd7 {[%clk 00:07:11]} {[%emt 00:00:03]} 54.
g6 {[%clk 00:01:37]} {[%emt 00:00:02]} Kxd4 {[%clk 00:07:11]} {[%emt 00:00:03]}
0-1

[Event "15. ročník Dobrovický rapid Tereos TTD a.s."]
[Site "Dobrovice, Czech Republic"]
[Date "2020.02.29"]
[Round "1.5"]
[White "Suran Jan"]
[Black "Maly Dusan"]
[Result "1-0"]
[TimeControl "15m + 3s / tah"]
[WhiteElo "2335"]
[BlackElo "1742"]

1. d4 {[%clk 00:15:00]} {[%emt 00:00:05]} Nf6 {[%clk 00:14:57]} {[%emt
00:00:09]} 2. Nf3 {[%clk 00:14:59]} {[%emt 00:00:04]} d5 {[%clk 00:14:58]}
{[%emt 00:00:02]} 3. Bf4 {[%clk 00:14:51]} {[%emt 00:00:11]} g6 {[%clk
00:14:52]} {[%emt 00:00:08]} 4. e3 {[%clk 00:14:31]} {[%emt 00:00:24]} Bg7
{[%clk 00:14:53]} {[%emt 00:00:02]} 5. c4 {[%clk 00:14:19]} {[%emt 00:00:15]}
O-O {[%clk 00:14:48]} {[%emt 00:00:09]} 6. Nc3 {[%clk 00:14:21]} c6 {[%clk
00:14:12]} {[%emt 00:00:38]} 7. Be2 {[%clk 00:13:26]} {[%emt 00:00:59]} Nbd7
{[%clk 00:13:36]} {[%emt 00:00:39]} 8. O-O {[%clk 00:13:25]} {[%emt 00:00:04]}
Ne4 {[%clk 00:13:32]} {[%emt 00:00:07]} 9. cxd5 {[%clk 00:12:25]} {[%emt
00:01:03]} Nxc3 {[%clk 00:13:29]} {[%emt 00:00:06]} 10. bxc3 {[%clk 00:12:27]}
{[%emt 00:00:01]} cxd5 {[%clk 00:13:30]} {[%emt 00:00:02]} 11. c4 {[%clk
00:12:27]} {[%emt 00:00:03]} Nf6 {[%clk 00:13:23]} {[%emt 00:00:10]} 12. Qb3
{[%clk 00:12:06]} {[%emt 00:00:24]} Be6 {[%clk 00:11:51]} {[%emt 00:01:36]} 13.
c5 {[%clk 00:11:11]} {[%emt 00:00:58]} Nh5 {[%clk 00:11:33]} {[%emt 00:00:21]}
14. Qxb7 {[%clk 00:09:02]} {[%emt 00:02:12]} Nxf4 {[%clk 00:11:31]} {[%emt
00:00:05]} 15. exf4 {[%clk 00:09:04]} {[%emt 00:00:01]} Bg4 {[%clk 00:08:46]}
{[%emt 00:02:48]} 16. Rfd1 {[%clk 00:08:41]} {[%emt 00:00:26]} e6 {[%clk
00:08:42]} {[%emt 00:00:07]} 17. Qb3 {[%clk 00:06:34]} {[%emt 00:02:10]} Rb8
{[%clk 00:08:26]} {[%emt 00:00:19]} 18. Qe3 {[%clk 00:05:25]} {[%emt 00:01:12]}
Qc7 {[%clk 00:07:45]} {[%emt 00:00:44]} 19. Ne5 {[%clk 00:05:22]} {[%emt
00:00:06]} Bxe2 {[%clk 00:07:46]} {[%emt 00:00:03]} 20. Qxe2 {[%clk 00:05:24]}
{[%emt 00:00:01]} Rb4 {[%clk 00:07:21]} {[%emt 00:00:27]} 21. Rab1 {[%clk
00:05:20]} {[%emt 00:00:07]} Rfb8 {[%clk 00:07:23]} {[%emt 00:00:02]} 22. Rxb4
{[%clk 00:04:52]} {[%emt 00:00:32]} Rxb4 {[%clk 00:07:24]} {[%emt 00:00:02]} 23.
g3 {[%clk 00:04:48]} {[%emt 00:00:06]} Bxe5 {[%clk 00:06:30]} {[%emt 00:00:57]}
24. fxe5 {[%clk 00:04:51]} Qb7 {[%clk 00:06:25]} {[%emt 00:00:08]} 25. h4
{[%clk 00:04:38]} {[%emt 00:00:16]} Rb2 {[%clk 00:06:19]} {[%emt 00:00:09]} 26.
Rd2 {[%clk 00:04:34]} {[%emt 00:00:06]} Rb4 {[%clk 00:05:24]} {[%emt 00:00:58]}
27. h5 {[%clk 00:04:22]} {[%emt 00:00:16]} Qe7 {[%clk 00:04:31]} {[%emt
00:00:55]} 28. Rb2 {[%clk 00:03:59]} {[%emt 00:00:26]} Rc4 {[%clk 00:03:51]}
{[%emt 00:00:43]} 29. h6 {[%clk 00:03:34]} {[%emt 00:00:29]} f6 {[%clk
00:03:51]} {[%emt 00:00:03]} 30. Rb8+ {[%clk 00:03:08]} {[%emt 00:00:29]} Kf7
{[%clk 00:03:53]} {[%emt 00:00:02]} 31. Qb2 {[%clk 00:03:06]} {[%emt 00:00:04]}
1-0

[Event "15. ročník Dobrovický rapid Tereos TTD a.s."]
[Site "Dobrovice, Czech Republic"]
[Date "2020.02.29"]
[Round "1.6"]
[White "Jordanov Mihail"]
[Black "Burdalev Kirill"]
[Result "1/2-1/2"]
[TimeControl "15m + 3s / tah"]
[WhiteElo "1740"]
[BlackElo "2334"]

1. e4 {[%clk 00:15:03]} {[%emt 00:00:02]} Nf6 {[%clk 00:15:05]} {[%emt
00:00:02]} 2. e5 {[%clk 00:15:05]} {[%emt 00:00:01]} Nd5 {[%clk 00:15:07]}
{[%emt 00:00:01]} 3. c4 {[%clk 00:15:06]} {[%emt 00:00:02]} Nb6 {[%clk
00:15:09]} {[%emt 00:00:01]} 4. d4 {[%clk 00:15:08]} {[%emt 00:00:01]} d6
{[%clk 00:15:11]} {[%emt 00:00:01]} 5. exd6 {[%clk 00:15:09]} {[%emt 00:00:02]}
cxd6 {[%clk 00:15:10]} {[%emt 00:00:04]} 6. Nc3 {[%clk 00:15:10]} {[%emt
00:00:01]} g6 {[%clk 00:15:12]} {[%emt 00:00:01]} 7. Be3 {[%clk 00:15:08]}
{[%emt 00:00:04]} Bg7 {[%clk 00:15:09]} {[%emt 00:00:06]} 8. Rc1 {[%clk
00:15:09]} {[%emt 00:00:02]} O-O {[%clk 00:15:03]} {[%emt 00:00:09]} 9. Nf3
{[%clk 00:15:11]} {[%emt 00:00:01]} Bg4 {[%clk 00:15:04]} {[%emt 00:00:03]} 10.
Be2 {[%clk 00:15:13]} {[%emt 00:00:01]} d5 {[%clk 00:13:58]} {[%emt 00:01:08]}
11. c5 {[%clk 00:14:45]} {[%emt 00:00:30]} Nc8 {[%clk 00:14:00]} {[%emt
00:00:02]} 12. h3 {[%clk 00:14:46]} {[%emt 00:00:03]} Bxf3 {[%clk 00:14:01]}
{[%emt 00:00:02]} 13. Bxf3 {[%clk 00:14:47]} {[%emt 00:00:01]} e6 {[%clk
00:13:59]} {[%emt 00:00:05]} 14. O-O {[%clk 00:14:48]} {[%emt 00:00:02]} Nc6
{[%clk 00:14:01]} {[%emt 00:00:01]} 15. a3 {[%clk 00:14:20]} {[%emt 00:00:31]}
N8e7 {[%clk 00:13:53]} {[%emt 00:00:12]} 16. b4 {[%clk 00:13:29]} {[%emt
00:00:53]} Nf5 {[%clk 00:13:53]} {[%emt 00:00:03]} 17. Ne2 {[%clk 00:13:20]}
{[%emt 00:00:12]} Qf6 {[%clk 00:13:55]} 18. b5 {[%clk 00:11:15]} {[%emt
00:02:09]} Ncxd4 {[%clk 00:13:57]} {[%emt 00:00:01]} 19. Nxd4 {[%clk 00:11:17]}
{[%emt 00:00:01]} Nxd4 {[%clk 00:13:58]} {[%emt 00:00:01]} 20. Bxd4 {[%clk
00:11:19]} {[%emt 00:00:02]} Qxd4 {[%clk 00:14:00]} {[%emt 00:00:01]} 21. Qxd4
{[%clk 00:11:20]} Bxd4 {[%clk 00:14:02]} {[%emt 00:00:01]} 22. c6 {[%clk
00:11:17]} {[%emt 00:00:07]} bxc6 {[%clk 00:14:04]} {[%emt 00:00:01]} 23. Rxc6
{[%clk 00:11:19]} {[%emt 00:00:01]} Rfc8 {[%clk 00:13:39]} {[%emt 00:00:27]} 24.
Rfc1 {[%clk 00:11:19]} {[%emt 00:00:04]} Rxc6 {[%clk 00:13:40]} {[%emt
00:00:02]} 25. Rxc6 {[%clk 00:11:20]} {[%emt 00:00:01]} Bb6 {[%clk 00:13:41]}
{[%emt 00:00:02]} 26. a4 {[%clk 00:11:14]} {[%emt 00:00:09]} Rd8 {[%clk
00:13:27]} {[%emt 00:00:17]} 27. Kf1 {[%clk 00:11:11]} {[%emt 00:00:06]} e5
{[%clk 00:13:04]} {[%emt 00:00:26]} 28. Be2 {[%clk 00:10:50]} {[%emt 00:00:25]}
e4 {[%clk 00:12:48]} {[%emt 00:00:19]} 29. f3 {[%clk 00:10:38]} {[%emt
00:00:15]} f5 {[%clk 00:12:42]} {[%emt 00:00:09]} 30. fxe4 {[%clk 00:10:38]}
{[%emt 00:00:03]} dxe4 {[%clk 00:12:31]} {[%emt 00:00:14]} 31. Bc4+ {[%clk
00:10:38]} {[%emt 00:00:03]} Kg7 {[%clk 00:12:33]} {[%emt 00:00:01]} 32. Ke2
{[%clk 00:10:39]} {[%emt 00:00:01]} f4 {[%clk 00:11:42]} {[%emt 00:00:54]} 33.
Re6 {[%clk 00:09:28]} {[%emt 00:01:15]} Rd4 {[%clk 00:11:19]} {[%emt 00:00:26]}
34. Bb3 {[%clk 00:08:23]} {[%emt 00:01:08]} f3+ {[%clk 00:11:20]} {[%emt
00:00:03]} 35. gxf3 {[%clk 00:08:11]} {[%emt 00:00:15]} exf3+ {[%clk 00:11:22]}
36. Kf1 {[%clk 00:07:57]} {[%emt 00:00:17]} Rh4 {[%clk 00:10:01]} {[%emt
00:01:24]} 37. Re7+ {[%clk 00:07:31]} {[%emt 00:00:29]} Kh6 {[%clk 00:10:02]}
{[%emt 00:00:01]} 38. a5 {[%clk 00:05:22]} {[%emt 00:02:12]} Bxa5 {[%clk
00:09:20]} {[%emt 00:00:45]} 39. Rxa7 {[%clk 00:05:23]} {[%emt 00:00:02]} Bb6
{[%clk 00:09:10]} {[%emt 00:00:13]} 40. Rb7 {[%clk 00:05:17]} {[%emt 00:00:08]}
Bd4 {[%clk 00:08:53]} {[%emt 00:00:20]} 41. Bg8 {[%clk 00:04:50]} {[%emt
00:00:30]} Bg7 {[%clk 00:08:55]} {[%emt 00:00:01]} 42. Be6 {[%clk 00:03:31]}
{[%emt 00:01:22]} Rf4 {[%clk 00:06:03]} {[%emt 00:02:55]} 43. Rf7 {[%clk
00:02:27]} {[%emt 00:01:06]} Rxf7 {[%clk 00:05:08]} {[%emt 00:00:58]} 44. Bxf7
{[%clk 00:02:29]} {[%emt 00:00:01]} Kg5 {[%clk 00:05:11]} 45. Bd5 {[%clk
00:01:35]} {[%emt 00:00:57]} Kf4 {[%clk 00:04:40]} {[%emt 00:00:34]} 46. b6
{[%clk 00:01:00]} {[%emt 00:00:37]} Bd4 {[%clk 00:03:41]} {[%emt 00:01:02]} 47.
b7 {[%clk 00:01:01]} {[%emt 00:00:03]} Ba7 {[%clk 00:03:42]} {[%emt 00:00:01]}
48. Bc6 {[%clk 00:00:58]} {[%emt 00:00:06]} Kg3 {[%clk 00:03:38]} {[%emt
00:00:07]} 49. Bd5 {[%clk 00:00:45]} {[%emt 00:00:17]} Kxh3 {[%clk 00:01:03]}
{[%emt 00:02:39]} 50. Bxf3 {[%clk 00:00:46]} g5 {[%clk 00:00:56]} {[%emt
00:00:10]} 51. Bh5 {[%clk 00:00:32]} {[%emt 00:00:17]} Kh4 {[%clk 00:00:55]}
{[%emt 00:00:04]} 52. Be2 {[%clk 00:00:29]} {[%emt 00:00:05]} h5 {[%clk
00:00:55]} {[%emt 00:00:03]} 53. Kg2 {[%clk 00:00:31]} {[%emt 00:00:01]} g4
{[%clk 00:00:52]} {[%emt 00:00:06]} 54. Bd1 {[%clk 00:00:32]} {[%emt 00:00:02]}
Kg5 {[%clk 00:00:47]} {[%emt 00:00:08]} 55. Be2 {[%clk 00:00:34]} {[%emt
00:00:01]} Kf4 {[%clk 00:00:38]} {[%emt 00:00:12]} 56. Bd1 {[%clk 00:00:31]}
{[%emt 00:00:06]} Bb8 {[%clk 00:00:31]} {[%emt 00:00:10]} 57. Be2 {[%clk
00:00:23]} {[%emt 00:00:11]} Ke3 {[%clk 00:00:25]} {[%emt 00:00:09]} 58. Bd1
{[%clk 00:00:16]} {[%emt 00:00:10]} Bc7 {[%clk 00:00:25]} {[%emt 00:00:02]} 59.
Kf1 {[%clk 00:00:10]} {[%emt 00:00:09]} Kd2 {[%clk 00:00:22]} {[%emt 00:00:06]}
60. Be2 {[%clk 00:00:12]} {[%emt 00:00:01]} Bb8 {[%clk 00:00:24]} 61. Bc4
{[%clk 00:00:11]} {[%emt 00:00:04]} Ke3 {[%clk 00:00:25]} {[%emt 00:00:01]} 62.
Be2 {[%clk 00:00:13]} {[%emt 00:00:01]} Kd2 {[%clk 00:00:18]} {[%emt 00:00:11]}
63. Bc4 {[%clk 00:00:14]} {[%emt 00:00:02]} Ke3 {[%clk 00:00:09]} {[%emt
00:00:12]} 64. Be2 {[%clk 00:00:16]} Kf4 {[%clk 00:00:11]} {[%emt 00:00:01]} 65.
Kg2 {[%clk 00:00:18]} Ke3 {[%clk 00:00:13]} {[%emt 00:00:01]} 66. Kf1 {[%clk
00:00:20]} Bd6 {[%clk 00:00:14]} {[%emt 00:00:02]} 67. Bd1 {[%clk 00:00:21]}
{[%emt 00:00:02]} Kd2 {[%clk 00:00:15]} {[%emt 00:00:02]} 68. Be2 {[%clk
00:00:23]} Bc7 {[%clk 00:00:17]} 69. Bc4 {[%clk 00:00:24]} {[%emt 00:00:02]} h4
{[%clk 00:00:20]} 70. Be6 {[%clk 00:00:23]} {[%emt 00:00:05]} g3 {[%clk
00:00:13]} {[%emt 00:00:09]} 71. Kg2 {[%clk 00:00:25]} Ke3 {[%clk 00:00:15]}
{[%emt 00:00:01]} 72. Bh3 {[%clk 00:00:27]} {[%emt 00:00:01]} Kf4 {[%clk
00:00:17]} {[%emt 00:00:01]} 73. Bc8 {[%clk 00:00:29]} Ke5 {[%emt 00:00:03]}
1/2-1/2